[Event "1st Bangalore GM-Open-B 2024"]
[Site "Bangalore"]
[Date "2024.01.21"]
[Round "10.3"]
[White "Bapat Aniket"]
[Black "Dawda Vihaan"]
[Result "0-1"]
[ECO "B99"]
[WhiteElo "1698"]
[BlackElo "1706"]
[Annotator "NA RC COMBH"]
[PlyCount "127"]
[EventDate "2024.01.20"]
[EventType "swiss"]
[EventCountry "IND"]
[SourceTitle "playchess.com"]
[Source "ChessBase"]
[SourceQuality "1"]
[TimeControl "3600+30"]

1. e4 {[%emt 0:02:00]} c5 {[%emt 0:00:11]} 2. Nf3 {[%emt 0:00:00]} d6 {[%emt 0:00:06]} 3. d4 {[%emt 0:00:00]} cxd4 {[%emt 0:00:07]} 4. Nxd4 {[%emt 0:00:00]} Nf6 {[%emt 0:00:10]} 5. Nc3 {[%emt 0:00:00]} a6 {[%emt 0:00:05]} 6. Bg5 {[%emt 0:00:00]} e6 {[%emt 0:00:10]} 7. f4 {[%emt 0:00:00]} Be7 {[%emt 0:00:06]} 8. Qf3 {[%emt 0:00:00]} Qc7 {[%emt 0:00:07]} 9. O-O-O {[%emt 0:00:00]} Nbd7 {[%emt 0:00:07]} 10. g4 {[%emt 0:00:00]} h6 {[%emt 0:00:15]} 11. h4 {[%emt 0:00:00]} Nb6 {[%emt 0:05:23]} 12. e5 {[%emt 0:00:00]} Nfd5 {[%emt 0:02:26]} 13. Bxe7 {[%emt 0:01:12]} Qxe7 {[%emt 0:01:20]} 14. Ne4 {[%emt 0:01:18]} dxe5 {[%emt 0:04:15]} 15. fxe5 {[%emt 0:00:06]} O-O {[%emt 0:02:50]} 16. g5 {[%emt 0:00:11]} Qc7 {[%emt 0:04:56]} 17. Nf6+ {[%emt 0:03:00]} Kh8 {[%emt 0:02:45]} 18. Qe4 {[%emt 0:00:07]} gxf6 {[%emt 0:02:48]} 19. gxf6 {[%emt 0:00:11]} Nxf6 {[%emt 0:00:04]} 20. exf6 {[%emt 0:00:11]} Nd5 {[%emt 0:00:04]} 21. Ne2 {[%emt 0:05:00]} Nxf6 {[%emt 0:03:24]} 22. Qe3 {[%emt 0:00:30]} Ng4 {[%emt 0:00:44]} 23. Qf3 {[%emt 0:00:55]} f5 {[%emt 0:03:37]} 24. Bh3 {[%emt 0:00:17]} Qg7 {[%emt 0:00:56]} 25. Rhg1 {[%emt 0:02:30]} e5 {[%emt 0:00:41]} 26. Bxg4 {[%emt 0:01:00]} fxg4 {[%emt 0:00:06]} 27. Qe3 {[%emt 0:00:59]} Bf5 {[%emt 0:02:04]} 28. Rd6 {[%emt 0:00:13]} Bh7 {[%emt 0:03:43]} 29. Rxh6 {[%emt 0:01:40]} Rf3 {[%emt 0:01:15]} 30. Qg5 {[%emt 0:07:48]} Raf8 {[%emt 0:02:22]} 31. Ng3 {[%emt 0:06:27]} Rf2 {[%emt 0:02:35]} 32. Ne4 {[%emt 0:00:07]} R2f5 {[%emt 0:00:14]} 33. Qe3 {[%emt 0:04:23]} Rf3 {[%emt 0:00:41]} 34. Qb6 {[%emt 0:00:54]} Qf7 {[%emt 0:04:57]} 35. b3 {[%emt 0:00:55]} Qf4+ {[%emt 0:00:34]} 36. Nd2 {[%emt 0:01:03]} Rf2 {[%emt 0:01:30]} 37. Rd1 {[%emt 0:04:14]} Qf5 {[%emt 0:01:36]} 38. Qc7 {[%emt 0:02:07]} Rf7 {[%emt 0:00:19]} 39. Qc3 {[%emt 0:02:33]} g3 {[%emt 0:01:28]} 40. Rxh7+ {[%emt 0:03:07]} Kxh7 {[%emt 0:00:43]} 41. Qxg3 {[%emt 0:00:17]} Rc7 {[%emt 0:00:56]} 42. c3 {[%emt 0:02:33]} Rd7 {[%emt 0:03:01]} 43. Qe3 {[%emt 0:02:49]} Qf4 {[%emt 0:00:51]} 44. Qxf4 {[%emt 0:01:05]} exf4 {[%emt 0:00:02]} 45. a4 {[%emt 0:00:20]} f3 {[%emt 0:00:41]} 46. Ne4 {[%emt 0:00:31]} Rxd1+ {[%emt 0:00:05]} 47. Kxd1 {[%emt 0:00:03]} Rf1+ {[%emt 0:00:34]} 48. Kd2 {[%emt 0:00:09]} Kg6 {[%emt 0:00:05]} 49. Ke3 {[%emt 0:00:21]} b6 {[%emt 0:01:32]} 50. b4 {[%emt 0:05:46]} Ra1 {[%emt 0:00:21]} 51. Kxf3 {[%emt 0:00:06]} Rxa4 {[%emt 0:00:03]} 52. Ke3 {[%emt 0:00:18]} Ra1 {[%emt 0:00:55]} 53. Nd6 {[%emt 0:01:33]} Re1+ {[%emt 0:01:42]} 54. Kd4 {[%emt 0:00:31]} Rd1+ {[%emt 0:00:05]} 55. Ke5 {[%emt 0:00:05]} a5 {[%emt 0:00:26]} 56. bxa5 {[%emt 0:01:15]} bxa5 {[%emt 0:00:04]} 57. Nb5 {[%emt 0:00:10]} a4 {[%emt 0:01:30]} 58. c4 {[%emt 0:00:07]} Rd3 {[%emt 0:00:53]} 59. h5+ {[%emt 0:02:28]} Kxh5 {[%emt 0:00:09]} 60. c5 {[%emt 0:00:06]} Rb3 {[%emt 0:00:42]} 61. Nd4 {[%emt 0:00:28]} Rc3 {[%emt 0:01:37]} 62. Kd5 {[%emt 0:00:05]} a3 {[%emt 0:00:39]} 63. Nb5 {[%emt 0:00:06]} Rxc5+ {[%emt 0:00:12]} 64. Kd4 {[%emt 0:00:36]} 0-1

[Event "1st Bangalore GM-Open-B 2024"]
[Site "Bangalore"]
[Date "2024.01.21"]
[Round "10.4"]
[White "Jaidambareesh N R"]
[Black "Tajane Ganesh"]
[Result "1-0"]
[ECO "A31"]
[WhiteElo "1757"]
[BlackElo "1655"]
[Annotator "NA RC COMBH"]
[PlyCount "159"]
[EventDate "2024.01.20"]
[EventType "swiss"]
[EventCountry "IND"]
[SourceTitle "playchess.com"]
[Source "ChessBase"]
[SourceQuality "1"]
[TimeControl "3600+30"]

1. Nf3 {[%emt 0:02:34]} Nf6 {[%emt 0:01:56]} 2. g3 {[%emt 0:02:00]} c5 {[%emt 0:00:56]} 3. Bg2 {[%emt 0:00:09]} Nc6 {[%emt 0:00:10]} 4. O-O {[%emt 0:00:09]} g6 {[%emt 0:00:46]} 5. c4 {[%emt 0:00:07]} Bg7 {[%emt 0:00:08]} 6. Nc3 {[%emt 0:00:08]} d6 {[%emt 0:02:32]} 7. d4 {[%emt 0:00:09]} cxd4 {[%emt 0:01:01]} 8. Nxd4 {[%emt 0:00:08]} Bd7 {[%emt 0:01:01]} 9. Nxc6 {[%emt 0:08:12]} Bxc6 10. Bxc6+ {[%emt 0:04:29]} bxc6 {[%emt 0:09:06]} 11. e4 {[%emt 0:05:48]} O-O {[%emt 0:01:02]} 12. Be3 {[%emt 0:02:01]} Nd7 {[%emt 0:04:45]} 13. Rc1 {[%emt 0:01:21]} Qa5 {[%emt 0:10:16]} 14. Bd2 {[%emt 0:05:17]} Nc5 {[%emt 0:06:41]} 15. Qe2 {[%emt 0:07:38]} Rab8 {[%emt 0:04:44]} 16. b3 {[%emt 0:01:22]} Qc7 {[%emt 0:00:43]} 17. Bf4 {[%emt 0:00:45]} e5 {[%emt 0:06:04]} 18. Be3 {[%emt 0:01:17]} Ne6 {[%emt 0:01:47]} 19. Qd3 {[%emt 0:00:39]} Rbd8 {[%emt 0:06:56]} 20. Ne2 {[%emt 0:09:46]} Nc5 {[%emt 0:01:39]} 21. Bxc5 {[%emt 0:00:06]} dxc5 {[%emt 0:00:07]} 22. Qe3 {[%emt 0:00:10]} Qa5 {[%emt 0:00:48]} 23. Rc2 {[%emt 0:01:09]} Rd7 {[%emt 0:00:50]} 24. Nc3 {[%emt 0:04:06]} Rfd8 {[%emt 0:01:28]} 25. Na4 {[%emt 0:00:57]} Rd4 {[%emt 0:01:44]} 26. h4 {[%emt 0:00:18]} h5 {[%emt 0:00:45]} 27. Kg2 {[%emt 0:02:20]} R8d7 {[%emt 0:01:10]} 28. Qe1 {[%emt 0:04:38]} Qxe1 {[%emt 0:02:39]} 29. Rxe1 {[%emt 0:00:05]} Bf8 {[%emt 0:00:42]} 30. Nb2 {[%emt 0:00:04]} Rd2 {[%emt 0:00:49]} 31. Re2 {[%emt 0:00:06]} Bh6 {[%emt 0:00:34]} 32. Na4 {[%emt 0:01:22]} Rxc2 {[%emt 0:00:31]} 33. Rxc2 {[%emt 0:00:06]} Bf8 {[%emt 0:00:12]} 34. Nb2 {[%emt 0:00:16]} f5 {[%emt 0:00:48]} 35. Kf3 {[%emt 0:01:07]} Kf7 {[%emt 0:01:08]} 36. Re2 {[%emt 0:03:42]} Ke6 {[%emt 0:01:11]} 37. Re1 {[%emt 0:03:35]} Rd4 {[%emt 0:00:40]} 38. Re2 {[%emt 0:00:31]} Bh6 {[%emt 0:00:09]} 39. Na4 {[%emt 0:00:14]} Kd6 {[%emt 0:00:22]} 40. Kg2 {[%emt 0:00:31]} Bd2 {[%emt 0:00:56]} 41. f3 {[%emt 0:00:45]} Bb4 {[%emt 0:00:34]} 42. Nb2 {[%emt 0:00:22]} Ba3 {[%emt 0:00:33]} 43. Na4 {[%emt 0:00:06]} Rd3 {[%emt 0:00:27]} 44. Kf2 {[%emt 0:00:21]} Bc1 {[%emt 0:00:22]} 45. Rc2 {[%emt 0:00:21]} Bh6 {[%emt 0:00:26]} 46. Nb2 {[%emt 0:00:15]} Rd4 {[%emt 0:00:14]} 47. Re2 {[%emt 0:00:06]} Bc1 {[%emt 0:00:41]} 48. Na4 {[%emt 0:00:04]} Bd2 {[%emt 0:00:49]} 49. Nb2 {[%emt 0:00:14]} f4 {[%emt 0:00:17]} 50. gxf4 {[%emt 0:03:01]} exf4 {[%emt 0:00:01]} 51. Na4 {[%emt 0:00:13]} Be3+ {[%emt 0:00:14]} 52. Kg2 {[%emt 0:00:05]} Rd1 {[%emt 0:00:37]} 53. Kh2 {[%emt 0:00:06]} Ke5 {[%emt 0:00:43]} 54. Nb2 {[%emt 0:00:37]} Rf1 {[%emt 0:00:55]} 55. Kg2 {[%emt 0:00:37]} Rg1+ {[%emt 0:00:28]} 56. Kh2 {[%emt 0:00:08]} Rg3 {[%emt 0:00:39]} 57. Rxe3 {[%emt 0:00:05]} fxe3 {[%emt 0:00:40]} 58. Kxg3 {[%emt 0:00:05]} Kd4 {[%emt 0:00:14]} 59. Kg2 {[%emt 0:00:07]} g5 {[%emt 0:00:21]} 60. hxg5 {[%emt 0:02:03]} h4 {[%emt 0:00:01]} 61. g6 {[%emt 0:00:18]} h3+ {[%emt 0:00:14]} 62. Kh2 {[%emt 0:00:04]} e2 {[%emt 0:00:28]} 63. g7 {[%emt 0:00:05]} e1=Q {[%emt 0:00:06]} 64. g8=Q {[%emt 0:00:03]} Qf2+ {[%emt 0:00:41]} 65. Kxh3 {[%emt 0:00:03]} Qxf3+ {[%emt 0:00:19]} 66. Qg3 {[%emt 0:00:07]} Qh1+ {[%emt 0:01:20]} 67. Kg4 {[%emt 0:00:07]} Qf1 {[%emt 0:01:11]} 68. Qd3+ {[%emt 0:00:43]} Qxd3 {[%emt 0:00:19]} 69. Nxd3 {[%emt 0:00:04]} Kxd3 {[%emt 0:00:27]} 70. e5 {[%emt 0:00:05]} Kc3 {[%emt 0:00:03]} 71. e6 {[%emt 0:00:04]} Kb2 {[%emt 0:00:03]} 72. e7 {[%emt 0:00:04]} Kxa2 {[%emt 0:00:03]} 73. e8=Q {[%emt 0:00:06]} Kxb3 {[%emt 0:00:06]} 74. Qxc6 {[%emt 0:00:06]} Kxc4 {[%emt 0:00:03]} 75. Qa6+ {[%emt 0:00:23]} Kb4 {[%emt 0:00:08]} 76. Qxa7 {[%emt 0:00:05]} c4 {[%emt 0:00:04]} 77. Qb6+ {[%emt 0:00:07]} Ka4 {[%emt 0:00:03]} 78. Qc5 {[%emt 0:00:06]} Kb3 {[%emt 0:00:03]} 79. Qb5+ {[%emt 0:00:05]} Kc3 {[%emt 0:00:02]} 80. Kf3 {[%emt 0:00:08]} 1-0

[Event "1st Bangalore GM-Open-B 2024"]
[Site "Bangalore"]
[Date "2024.01.21"]
[Round "10.5"]
[White "Chaudhari, Ashish"]
[Black "Afreed T Khan"]
[Result "1/2-1/2"]
[ECO "E73"]
[WhiteElo "1648"]
[BlackElo "1668"]
[Annotator "NA RC COMBH"]
[PlyCount "42"]
[EventDate "2024.01.20"]
[EventType "swiss"]
[EventCountry "IND"]
[SourceTitle "playchess.com"]
[Source "ChessBase"]
[SourceQuality "1"]
[TimeControl "3600+30"]

1. d4 {[%emt 0:00:06]} Nf6 {[%emt 0:00:29]} 2. c4 {[%emt 0:00:07]} g6 {[%emt 0:00:06]} 3. Nc3 {[%emt 0:00:03]} Bg7 {[%emt 0:00:07]} 4. e4 {[%emt 0:00:05]} d6 {[%emt 0:00:06]} 5. Be2 {[%emt 0:00:04]} O-O {[%emt 0:00:09]} 6. Be3 {[%emt 0:00:04]} e5 {[%emt 0:00:30]} 7. d5 {[%emt 0:00:08]} Na6 {[%emt 0:00:12]} 8. g4 {[%emt 0:02:22]} Nc5 {[%emt 0:02:37]} 9. f3 {[%emt 0:00:46]} a5 {[%emt 0:00:32]} 10. Qd2 {[%emt 0:00:45]} h5 {[%emt 0:02:04]} 11. h3 {[%emt 0:02:52]} Kh7 {[%emt 0:19:20]} 12. O-O-O {[%emt 0:05:21]} Bd7 {[%emt 0:01:13]} 13. Bg5 {[%emt 0:04:48]} Qe8 {[%emt 0:00:23]} 14. Bf1 {[%emt 0:08:13]} Ng8 {[%emt 0:01:47]} 15. gxh5 {[%emt 0:01:51]} gxh5 {[%emt 0:00:03]} 16. h4 {[%emt 0:05:01]} f6 {[%emt 0:04:10]} 17. Be3 {[%emt 0:00:36]} Bh6 {[%emt 0:00:03]} 18. Bh3 {[%emt 0:03:39]} Bxe3 {[%emt 0:04:31]} 19. Qxe3 {[%emt 0:00:09]} Bxh3 {[%emt 0:00:05]} 20. Rxh3 {[%emt 0:02:32]} Ne7 {[%emt 0:00:40]} 21. Nge2 {[%emt 0:01:49]} Rg8 {[%emt 0:00:25]} 1/2-1/2